fUSD/lending_fUSD_20241106
["ID","MTS","AMOUNT","RATE_DAILY","PERIOD"]
[341440285,1730886632566,-299.43152816,0.00035999,15]
[341440286,1730886632577,-200.56847184,0.00035999,15]
[341440287,1730886632587,-411.08469993,0.00035999,15]
[341440288,1730886632596,-500.0,0.00035999,15]
[341440289,1730886632605,-154.11637952,0.00035999,15]
[341440290,1730886632617,-345.88362048,0.00035999,15]
[341440291,1730886632626,-649.74917033,0.00035999,15]
[341440292,1730886632635,-500.0,0.00035999,15]
[341440293,1730886632645,-500.0,0.00035999,15]
[341440294,1730886632654,-1072.28397121,0.00035999,3]
[341440295,1730886632676,-5063.25800002,0.00035999,3]
[341440296,1730886632686,-448.44185059,0.00035999,3]
[341440297,1730886632697,-12439.37149344,0.00035999,3]
[341440298,1730886632706,-209756.08822959,0.00036,3]
[341440299,1730886632946,-57990.0255935,0.00036,3]
[341440300,1730886632958,-34936.00001126,0.00036,3]
[341440301,1730886632969,-74400.00000004,0.00036,3]
[341440302,1730886632980,-1093.94528111,0.00036,3]
[341440508,1730886638371,-663.09407918,0.00036,3]
[341440509,1730886638462,-55.07019013,0.00036,3]
[341440510,1730886638477,-435.097,0.00036,3]
[341440511,1730886638595,-2613.25621324,0.00036,3]
[341440512,1730886638673,-23309.88975161,0.00036,3]
[341440513,1730886638748,-310.24010705,0.00036,3]
[341440514,1730886638761,-2432.80212059,0.00036,3]
[341440515,1730886638839,-537.13002854,0.00036,3]
[341440516,1730886639175,-873.13340405,0.00036,3]
[341440517,1730886639187,-1236.02375094,0.00036,3]
[341440983,1730886644090,-2217.6,0.00036,3]
[341440986,1730886644103,-73968.7313085,0.00036,3]
[341440997,1730886644203,-30.5231088,0.00036,3]
[341441019,1730886644405,-101.09551502,0.00036,3]
[341441021,1730886644416,-5001.84102094,0.00036,3]
[341441226,1730886646411,-2588.11000119,0.00036,3]
[341441235,1730886646488,-7409.24287999,0.00036,3]
[341441244,1730886646563,-6606.60574918,0.00036,3]
[341441273,1730886646827,-681.26701413,0.00036,3]
[341441276,1730886646838,-1071.84134,0.00036,3]
[341442671,1730886661867,300.0,0.00019725,2]
[341442820,1730886722118,300.0,0.00019725,2]
[341442821,1730886722882,150.0,0.00021484,2]
[341442823,1730886742586,150.55831955,0.00018123,2]
[341442825,1730886745911,156.51,0.00015342,2]
[341442828,1730887116919,6419.8895964,0.0001,2]
[341442829,1730887248931,158.04,0.00015342,2]
[341442837,1730887638299,-11507.22718668,0.0002,2]
[341442838,1730887651094,-1523.76313974,0.0002,2]
[341442839,1730887676772,-1281.05018796,0.0002,2]
[341442840,1730887701820,-250.0,0.00021,2]
[341442841,1730887701841,-176.83,0.00021918,2]
[341442842,1730887701861,-300.0,0.00023,2]
[341442843,1730887715726,-1000.0,0.000241,60]
[341442844,1730887739452,-180.0,0.000324,120]
[341442845,1730887746126,-662.77,0.00033779,2]
[341442846,1730887746147,-386.77,0.00033779,2]
[341442847,1730887746166,-2485.21,0.00033779,2]
[341442848,1730887746188,-250.0,0.00034071,2]
[341442849,1730887746209,-250.0,0.00034107,2]
[341442850,1730887746229,-4002.62,0.00034184,2]
[341442851,1730887746249,-200.0,0.000342,2]
[341442852,1730887746268,-321.04,0.00034221,2]
[341442853,1730887746288,-3622.66,0.00034221,2]
[341442854,1730887746307,-1220.16,0.00034221,2]
[341442855,1730887746327,-250.0,0.00034266,120]
[341442856,1730887746350,-1000.0,0.00034395,2]
[341442857,1730887746371,-160.0,0.000344,120]
[341442858,1730887747294,706.16,0.0003361,2]
[341442859,1730887748430,706.16,0.0003415,2]
[341442861,1730887761102,897.8,0.00033373,2]
[341442862,1730887774466,-259.66,0.00034539,2]
[341442863,1730887774487,-706.16,0.0003469,2]
[341442864,1730887774511,-500.0,0.00035,2]
[341442865,1730887774531,-3379.59,0.00035,10]
[341442866,1730887789283,-706.16,0.0003523,2]
[341442867,1730887789304,-177.12,0.00035243,120]
[341442868,1730887789325,-1257.0,0.00035481,2]
[341442869,1730887789344,-920.0,0.00035481,2]
[341442870,1730887789365,-813.0,0.00035481,2]
[341442871,1730887789387,-2907.0,0.00035481,2]
[341442872,1730887789407,-1149.0,0.00035481,2]
[341442873,1730887789427,-1089.0,0.00035481,2]
[341442874,1730887789446,-154.63,0.00035608,2]
[341442875,1730887789468,-897.8,0.00035636,2]
[341442876,1730887789489,-299.7,0.00035678,120]
[341442877,1730887789510,-727.684,0.00035697,42]
[341442878,1730887789530,-706.16,0.0003577,2]
[341442879,1730887789549,-50000.0,0.000358,2]
[341442880,1730887789569,-500.0,0.00035973,2]
[341442881,1730887789589,-927.41692,0.00035973,2]
[341442882,1730887789608,-538.87521668,0.00035999,15]
[341442883,1730887789629,-406.51120962,0.00035999,15]
[341442884,1730887790651,200.0,0.00035473,2]
[341442887,1730887802607,-5552.5894151,0.00036,7]
[341442888,1730887802628,-70441.02305064,0.00036,2]
[341442895,1730887831594,-4963.44185059,0.00036,2]
[341442896,1730887831606,-12105.14165558,0.00036,2]
[341442897,1730887831617,-12439.37149344,0.00036,2]
[341442898,1730887831703,-807.5,0.00036,2]
[341442904,1730887837860,-1150.70716702,0.00036,2]
[341443030,1730887839561,-9096.64373114,0.00036,2]
[341443031,1730887839573,-3125.17105159,0.00036,2]
[341443032,1730887839582,-454.39662563,0.00036166,15]
[341443033,1730887839591,-259.66,0.00036266,2]
[341443034,1730887839600,-706.16,0.0003631,2]
[341443035,1730887839608,-155.44,0.00036312,2]
[341443036,1730887839617,-454.39662557,0.00036359,15]
[341443037,1730887839626,-160.0,0.000364,120]
[341443038,1730887839635,-454.39662557,0.00036551,15]
[341443039,1730887839644,-454.39662557,0.00036744,15]
[341443040,1730887839653,-200.0,0.00036838,7]
[341443041,1730887839663,-706.16,0.0003685,2]
[341443042,1730887839671,-174.74670744,0.000369,2]
[341443043,1730887839680,-454.39662557,0.00036937,15]
[341443044,1730887839689,-500.0,0.00036973,5]
[341443045,1730887839698,-370.3233325,0.00036987,2]
[341443046,1730887839707,-317.57457529,0.00036997,7]
[341443047,1730887839719,-1252.50453017,0.00036997,7]
[341443048,1730887839730,-2179.0746051,0.00036997,7]
[341443049,1730887839741,-160.0,0.00037,45]
[341443050,1730887839750,-6738.47405642,0.00037,120]
[341443051,1730887839764,-8943.84023489,0.00037,120]
[341443052,1730887839779,-325.46236118,0.00037,120]
[341443053,1730887839789,-1439.76096531,0.00037,120]
[341443054,1730887839800,-305.87,0.00037,120]
[341443055,1730887840224,-0.8272538,0.00037,120]
[341443059,1730887842514,-22693.33253437,0.00037,120]
[341443063,1730887845658,-36944.02706007,0.00037,120]
[341443064,1730887845670,-7396.0626,0.00037,120]
[341443065,1730887845759,-404.48230813,0.00037,120]
[341443097,1730887846401,-1278.58079865,0.00037,120]
[341443575,1730888041286,287.0,0.00019725,2]
[341443578,1730888310344,156.9,0.00015342,2]
[341443579,1730888335689,150.99586821,0.00015265,2]
[341443584,1730888673385,-161.0,0.000237,2]
[341443585,1730888673413,-1970.0,0.00031,2]
[341443586,1730888706809,-808.02,0.00034307,2]
[341443587,1730888708273,144170.98,0.00016,2]
[341443588,1730888708318,21060.10413179,0.00016,2]
[341443589,1730888708341,185373.44372363,0.00016,2]
[341443590,1730888734122,-434.85525,0.0003,2]
[341443591,1730888734142,-407.86617135,0.00033026,2]
[341443592,1730888756465,39681.64458417,0.0001892,2]
[341443593,1730888771553,2324.21123606,0.000199,3]
[341443594,1730888830079,-202.80124036,0.00023,2]
[341443595,1730888830101,-26.98907865,0.00033026,2]
[341443596,1730888830123,-767.61,0.00033763,2]
[341443597,1730888830143,-176.54,0.00034899,2]
[341443598,1730888830163,-873.02599496,0.00035,2]
[341443599,1730888857755,328.25516862,0.00018,2]
[341443600,1730888878926,253.65022869,0.00018,2]
[341443601,1730888884275,419709.37370608,0.00015,2]
[341443602,1730888906212,16959.33158764,0.0002,2]
[341443603,1730888907139,156.22,0.00015342,2]
[341443606,1730888925512,4555.505532,0.00018,2]
[341443607,1730888926497,7624.12874783,0.0002,2]
[341443609,1730888945175,-35754.42689191,0.00022,2]
[341443610,1730888945600,-6619.6616465,0.0002445,2]
[341443611,1730888945642,-18143.15252774,0.000299,2]
[341443612,1730888945663,-4592.39608637,0.000328,2]
[341443613,1730888945683,-7561.77970748,0.00033,2]
[341443614,1730888953139,-10299.47700952,0.00033,2]
[341443615,1730888953162,-200.0,0.000342,2]
[341443642,1730889031763,-1051.14437944,0.000349,7]
[341443643,1730889031776,-1166.87796557,0.000349,7]
[341443644,1730889031874,-1184.50045499,0.000349,7]
[341443645,1730889031884,-2695.42731944,0.00035,2]
[341443646,1730889031983,-13167.28481284,0.00035,2]
[341443731,1730889038027,-3233.42274633,0.00035,2]
[341443748,1730889038211,-2658.39,0.00035,2]
[341443753,1730889038404,-334.49908214,0.00035,2]
[341443754,1730889038430,-5344.25833557,0.00035,2]
[341443755,1730889038442,-1835.73511576,0.0003525,2]
[341443756,1730889038451,-160.52,0.00035599,2]
[341443757,1730889038462,-160.0,0.00035681,2]
[341443758,1730889038473,-284.71,0.00035721,120]
[341443759,1730889038482,-250.0,0.00035762,120]
[341443760,1730889038491,-154.63,0.00035804,2]
[341443761,1730889038500,-177.12,0.00035804,120]
[341443762,1730889038510,-761.58,0.0003589,2]
[341443763,1730889038519,-427.45,0.0003589,2]
[341443764,1730889038528,-761.58,0.0003589,2]
[341443766,1730889038538,-761.58,0.0003589,2]
[341443768,1730889038547,-761.58,0.0003589,2]
[341443770,1730889038556,-767.61,0.00036027,2]
[341443771,1730889038566,-427.45,0.00036041,2]
[341443773,1730889038574,-176.54,0.00036208,2]
[341443775,1730889038584,-155.79,0.0003624,2]
[341443777,1730889038593,-840.0,0.0003624,2]
[341443779,1730889038603,-176.49,0.00036462,120]
[341443781,1730889038612,-228.09,0.0003649,3]
[341443783,1730889038621,-13982.02391342,0.000365,50]
[341443785,1730889038634,-8355.461751,0.000365,50]
[341443788,1730889038647,-2815.04819312,0.000365,50]
[341443790,1730889038659,-6705.30828926,0.000365,50]
[341443792,1730889038670,-13828.38682861,0.000365,50]
[341443882,1730889039768,-984.45341094,0.000365,50]
[341443885,1730889039790,-7699.31761365,0.000365,50]
[341443887,1730889039799,-313.85249634,0.000366,13]
[341443899,1730889039908,-86.14750366,0.000366,13]
[341443901,1730889039917,-582.147,0.0003662,45]
[341443903,1730889039927,-772.84743,0.0003662,2]
[341443905,1730889039936,-368.84,0.0003662,10]
[341443907,1730889039947,-328.69409634,0.0003663,2]
[341444315,1730889044006,-93.63571356,0.0003589,2]
[341444317,1730889044018,-390.00338682,0.0003589,2]
[341444319,1730889044029,-277.94089962,0.0003589,2]
[341444321,1730889044038,-7612.85910038,0.0003663,2]
[341444324,1730889044050,-39186.25392163,0.0003663,2]
[341444326,1730889044060,-35993.98848085,0.0003663,2]
[341444327,1730889044069,-151.0,0.0003663,7]
[341444329,1730889044078,-151.0,0.0003663,7]
[341444331,1730889044088,-151.0,0.0003663,7]
[341444333,1730889044097,-151.0,0.0003663,7]
[341444335,1730889044107,-151.0,0.0003663,7]
[341444337,1730889044116,-151.0,0.0003663,7]
[341444339,1730889044125,-151.0,0.0003663,7]
[341444341,1730889044135,-151.0,0.0003663,7]
[341444343,1730889044144,-1913.87794332,0.00036642,15]
[341444345,1730889044153,-800.0,0.000367,13]
[341444347,1730889044163,-1913.87794332,0.00036782,15]
[341444349,1730889044172,-1200.0,0.000368,13]
[341444351,1730889044182,-250.0,0.00036838,2]
[341444353,1730889044192,-761.58,0.00036849,2]
[341444355,1730889044201,-761.58,0.00036849,2]
[341444357,1730889044211,-761.58,0.00036849,2]
[341444359,1730889044223,-761.58,0.00036849,2]
[341444361,1730889044233,-7500.0,0.00036899,2]
[341444363,1730889044242,-9725.7865,0.000369,2]
[341444365,1730889044251,-1700.0,0.000369,13]
[341444366,1730889044260,-4296.67267949,0.000369,2]
[341444368,1730889044269,-867.30010271,0.000369,2]
[341444370,1730889044278,-204.88070022,0.000369,2]
[341444372,1730889044287,-317.71687078,0.000369,2]
[341444375,1730889044297,-609.96777616,0.000369,2]
[341444378,1730889044306,-2086.84393866,0.000369,2]
[341444381,1730889044315,-1913.87794332,0.00036922,15]
[341444382,1730889044324,-159.530206,0.00036946,2]
[341444383,1730889044334,-612.69535125,0.00036973,5]
[341444384,1730889044344,-3251.12777675,0.00036986,2]
[341444385,1730889044353,-150.0,0.00036986,2]
[341444387,1730889044362,-248.58,0.00036986,2]
[341444388,1730889044371,-150.0,0.00036986,2]
[341444390,1730889044380,-500.0,0.00036999,15]
[341444392,1730889044389,-482.61130696,0.00036999,15]
[341444394,1730889044399,-4375.89,0.00036999,120]
[341444396,1730889044408,-151.0,0.00036999,7]
[341444398,1730889044417,-155.697227,0.00036999,7]
[341444400,1730889044426,-151.0,0.00036999,7]
[341444402,1730889044435,-170.549901,0.00036999,7]
[341444404,1730889044445,-151.0,0.00036999,7]
[341444406,1730889044453,-170.549901,0.00036999,7]
[341444408,1730889044463,-151.0,0.00036999,7]
[341444410,1730889044473,-151.0,0.00036999,7]
[341444411,1730889044483,-151.0,0.00036999,7]
[341444413,1730889044492,-151.0,0.00036999,7]
[341444415,1730889044501,-160.475378,0.00036999,7]
[341444417,1730889044511,-4265.92907631,0.00036999,2]
[341444421,1730889044531,-695.13,0.00036999,2]
[341444423,1730889044543,-2538.94092369,0.00036999,2]
[341444424,1730889044552,-151.0,0.00036999,7]
[341444426,1730889044562,-665.923523,0.00036999,7]
[341444428,1730889044571,-665.923523,0.00036999,7]
[341444430,1730889044580,-151.0,0.00036999,7]
[341444432,1730889044590,-151.0,0.00036999,7]
[341444434,1730889044599,-151.0,0.00036999,7]
[341444436,1730889044608,-151.0,0.00036999,7]
[341444438,1730889044617,-151.0,0.00036999,7]
[341444440,1730889044627,-151.0,0.00036999,7]
[341444442,1730889044637,-10319.08938809,0.00037,3]
[341444580,1730889046010,-160987.5495055,0.00037,3]
[341444583,1730889046034,-4454.44991329,0.00037,3]
[341444585,1730889046046,-2684.5,0.00037,3]
[341444587,1730889046057,-22084.583849,0.00037,3]
[341444597,1730889046147,-1839.24188,0.00037,3]
[341444599,1730889046160,-730930.44203874,0.00037,3]
[341444601,1730889046170,-17489.46982245,0.00037,3]
[341444603,1730889046180,-28565.02140804,0.00037,120]
[341444605,1730889046190,-3167.77281222,0.00037,30]
[341445243,1730889063042,260.92,0.00034,120]
[341445244,1730889155719,150.0,0.00018123,2]
[341445246,1730889197245,150.0,0.00018123,2]
[341445252,1730889686729,156.51,0.00015342,2]
[341445258,1730889959114,-154.46,0.00028596,2]
[341445259,1730889959134,-206.73535921,0.000305,2]
[341445260,1730890041862,-1758.26464079,0.000305,2]
[341445261,1730890041882,-924.0,0.000305,2]
[341445262,1730890041902,-770.6,0.00033864,2]
[341445263,1730890041923,-293.42694664,0.000345,2]
[341445264,1730890080701,220.11,0.0002,2]
[341445265,1730890153138,-11124.29394335,0.000345,2]
[341445266,1730890166141,-15132.27911001,0.000345,2]
[341445267,1730890166166,-2832.22618778,0.000345,15]
[341445268,1730890184219,157.73,0.00015342,2]
[341445269,1730890191502,150.55831955,0.00018123,2]
[341445274,1730890231916,-663.95658174,0.00034665,2]
[341445276,1730890231928,-1395.27198924,0.00034665,2]
[341445280,1730890231954,-831.25142902,0.00034665,2]
[341445282,1730890231963,-5114.32290456,0.00035,120]
[341445296,1730890232088,-40051.15971515,0.00035,120]
[341445297,1730890232218,-1971.88412231,0.00035,120]
[341445298,1730890232229,-420.85374406,0.00035,120]
[341445299,1730890232259,-340.28165674,0.00035,120]
[341445302,1730890238170,-22097.52151662,0.00035,120]
[341445303,1730890238182,-569.5689955,0.00035,120]
[341445304,1730890238237,-313.999999,0.00035,120]
[341445305,1730890238352,-40.13281778,0.00035,120]
[341445306,1730890238857,-28897.06376542,0.00035,120]
[341445307,1730890238874,-8355.461751,0.00035,120]
[341445308,1730890238889,-2815.04819312,0.00035,120]
[341445309,1730890238906,-277.595,0.00035,120]
[341445391,1730890240151,-26449.2594556,0.00035,120]
[341445392,1730890240163,-1729.68807,0.00035,120]
[341445393,1730890240175,-2321.9735841,0.00035,120]
[341445396,1730890240352,-723.32294038,0.00035,120]
[341445397,1730890240364,-1049.9664575,0.00035,120]
[341445405,1730890242987,-814.1471088,0.00035,120]
[341445406,1730890243099,-474.18555,0.00035,120]
[341445407,1730890243196,-4345.79337626,0.00035,120]
[341445416,1730890245964,-7984.22046995,0.00035,120]
[341445417,1730890245977,-152748.61031438,0.00035,120]
[341445418,1730890245990,-9182.85664915,0.00035,120]
[341445419,1730890246003,-208468.25949654,0.00035,120]
[341445420,1730890246013,-1786.83184388,0.00035,5]
[341445421,1730890246024,-2890.48,0.00035222,2]
[341445422,1730890246034,-250.0,0.00035276,120]
[341445423,1730890246044,-154.63,0.00035338,2]
[341445424,1730890246054,-200.0,0.00035462,7]
[341445425,1730890246064,-160.0,0.00035548,2]
[341445426,1730890246074,-270.47,0.00035561,120]
[341445427,1730890246084,-160.52,0.0003571,2]
[341445428,1730890246095,-2890.48,0.00035779,2]
[341445429,1730890246105,-250.0,0.0003579,2]
[341445430,1730890246115,-155.79,0.00035915,2]
[341445431,1730890246125,-3784.1663,0.00035927,2]
[341445432,1730890246136,-872.0,0.00035977,2]
[341445433,1730890246149,-171.552,0.0003611,30]
[341445434,1730890246159,-770.6,0.00036127,2]
[341445435,1730890246168,-2890.48,0.00036336,2]
[341445436,1730890246179,-465.717,0.00036503,45]
[341445437,1730890246190,-302.32640067,0.00036529,2]
[341445438,1730890246199,-12894.5361169,0.0003653,2]
[341445439,1730890246211,-59951.5447831,0.0003653,2]
[341445440,1730890246221,-27214.25203113,0.0003663,2]
[341445441,1730890246231,-660.2983,0.000368,2]
[341445442,1730890246241,-500.0,0.000368,2]
[341445443,1730890246251,-28769.7877,0.000368,2]
[341445444,1730890246260,-534.06609381,0.00036873,2]
[341445445,1730890246270,-867.44,0.0003689,3]
[341445446,1730890246280,-2890.48,0.00036893,2]
[341445447,1730890246289,-105527.1924,0.000369,2]
[341445448,1730890246299,-21672.96098196,0.000369,2]
[341445449,1730890246310,-5244.2,0.000369,2]
[341445450,1730890246427,-461.06491921,0.000369,2]
[341445451,1730890246527,-72621.77409883,0.000369,2]
[341445452,1730890246538,-173.6339489,0.000369,2]
[341445453,1730890246548,-10489.91513325,0.000369,2]
[341445454,1730890246558,-2284.0,0.000369,3]
[341445455,1730890246568,-995.55689986,0.000369,2]
[341445456,1730890246578,-406.6451841,0.00036973,2]
[341445457,1730890246587,-150.0,0.00036986,2]
[341445458,1730890246597,-432.58,0.00036986,2]
[341445459,1730890246606,-165.26,0.00036986,2]
[341445460,1730890246616,-150.0,0.00036986,2]
[341445461,1730890246625,-432.58,0.00036986,2]
[341445462,1730890246635,-361.8,0.00036986,2]
[341445463,1730890246644,-344.64,0.00036986,2]
[341445464,1730890246654,-150.0,0.00036986,2]
[341445465,1730890246663,-361.8,0.00036986,2]
[341445466,1730890246672,-150.0,0.00036986,2]
[341445467,1730890246681,-150.0,0.00036986,2]
[341445468,1730890246691,-346.5,0.00036986,2]
[341445469,1730890246700,-8363.5086943,0.00036994,2]
[341445470,1730890246710,-186.89259961,0.00036997,2]
[341445471,1730890246719,-2864.448453,0.00036998,2]
[341445472,1730890246728,-1000.0,0.00036999,120]
[341445473,1730890246737,-500.0,0.00036999,2]
[341445474,1730890246746,-4193.57,0.00036999,120]
[341445476,1730890246755,-644.03952,0.00036999,2]
[341445477,1730890246765,-500.0,0.00036999,15]
[341445478,1730890246774,-187.82791488,0.00036999,15]
[341445480,1730890246784,-39236.09700591,0.00037,3]
[341445483,1730890246795,-1845.9,0.00037,3]
[341445485,1730890246807,-283243.06221429,0.00037,3]
[341445491,1730890246862,-1476.065,0.00037,3]
[341445493,1730890246874,-14750.2,0.00037,3]
[341445661,1730890253291,150.0,0.00018123,2]
[341445662,1730890322073,156.04,0.00016712,2]
[341445665,1730890802710,283.0092244,0.00016712,2]
[341445751,1730891345150,-1769.0,0.000309,2]
[341445752,1730891345170,-340.0,0.000324,120]
[341445753,1730891345190,-849.64,0.00032767,2]
[341445754,1730891345211,-2211.79,0.00033967,2]
[341445755,1730891345229,-200.0,0.000342,2]
[341445758,1730891351123,-330.0,0.000344,120]
[341445759,1730891351143,-2211.79,0.00034513,2]
[341445760,1730891351163,-1597.14,0.00034516,2]
[341445777,1730891432131,-1228.68729422,0.00034546,2]
[341445778,1730891432184,-910.69156785,0.00034546,2]
[341445779,1730891432229,-900.0,0.00034546,2]
[341445780,1730891432379,-818.0,0.00034546,2]
[341445781,1730891432392,-1126.05113793,0.00034546,2]
[341445782,1730891432401,-1721.75,0.00034551,2]
[341445783,1730891432411,-154.63,0.00034565,2]
[341445784,1730891432421,-477.36,0.00034569,2]
[341445785,1730891432430,-58.78434895,0.00034578,2]
[341445786,1730891432451,-441.21565105,0.00034578,2]
[341445787,1730891432461,-111.46821156,0.00034601,7]
[341445788,1730891432474,-88.53178844,0.00034601,7]
[341445790,1730891432483,-295.61,0.00034603,2]
[341445791,1730891432492,-1170.32,0.00034608,2]
[341445792,1730891432501,-250.0,0.00034622,120]
[341445793,1730891432510,-250.0,0.00034642,2]
[341445794,1730891432519,-4260.04,0.00034644,2]
[341445795,1730891432528,-1727.61,0.00034647,2]
[341445796,1730891432540,-4907.79,0.00034696,2]
[341445797,1730891432550,-160.0,0.00034752,2]
[341445798,1730891432559,-150.0,0.00034752,2]
[341445799,1730891432569,-524.75,0.00034758,2]
[341445800,1730891432578,-8841.46198014,0.00034791,2]
[341445859,1730891438162,-15048.53801986,0.00034791,2]
[341445860,1730891438172,-271.19,0.0003488,120]
[341445861,1730891438182,-160.15,0.00034981,2]
[341445862,1730891438192,-3502.418481,0.00035,31]
[341445863,1730891438201,-849.64,0.00035031,2]
[341445864,1730891438211,-2211.79,0.00035059,2]
[341445865,1730891438220,-1324.054,0.00035418,2]
[341445866,1730891438231,-1988.0,0.00035418,2]
[341445867,1730891438241,-558.0,0.00035418,2]
[341445868,1730891438250,-813.0,0.00035418,2]
[341445869,1730891438574,-2170.28326456,0.00035418,2]
[341445870,1730891438592,-736.71673544,0.00035418,2]
[341445871,1730891438601,-1257.0,0.00035418,2]
[341445872,1730891438610,-920.0,0.00035418,2]
[341445873,1730891438620,-160.99,0.00035547,2]
[341445874,1730891438629,-160.99,0.00035587,2]
[341445875,1730891438638,-2211.79,0.00035605,2]
[341445876,1730891438647,-160.99,0.00035626,2]
[341445877,1730891438656,-160.99,0.00035666,2]
[341445878,1730891438665,-160.99,0.00035705,2]
[341445879,1730891438675,-176.8,0.00035742,120]
[341445880,1730891438687,-160.99,0.00035745,2]
[341445881,1730891438699,-160.99,0.00035784,2]
[341445882,1730891438709,-160.99,0.00035824,2]
[341445883,1730891438718,-258.2,0.00035861,2]
[341445884,1730891438727,-160.99,0.00035863,2]
[341445885,1730891438736,-160.99,0.00035903,2]
[341445886,1730891438746,-372.574,0.00035903,43]
[341445887,1730891438756,-812.48101556,0.00035999,2]
[341445888,1730891438770,-91.51898444,0.00035999,2]
[341445889,1730891438779,-167.75394939,0.00036,5]
[341445890,1730891438788,-2555.77525929,0.00036,30]
[341445891,1730891438800,-4159.16310854,0.00036,30]
[341445892,1730891438821,-1850.0,0.00036,30]
[341445893,1730891438835,-464.016,0.00036,30]
[341445894,1730891438851,-580.5753858,0.00036,30]
[341445895,1730891438862,-11602.81751231,0.00036,30]
[341445896,1730891438871,-2211.79,0.0003615,2]
[341445897,1730891438881,-150.0,0.00036164,2]
[341445898,1730891438892,-330.0,0.000364,120]
[341445899,1730891438902,-7612.85910038,0.0003663,2]
[341445900,1730891438912,-536.6996,0.0003663,2]
[341445901,1730891438922,-2211.79,0.00036696,2]
[341445902,1730891438931,-156.0,0.00036789,10]
[341445903,1730891438940,-5505.97,0.00036799,7]
[341445904,1730891438953,-500.0,0.00036799,7]
[341445905,1730891438964,-154.567754,0.00036799,7]
[341445906,1730891438974,-184.317049,0.00036799,7]
[341445907,1730891438984,-154.296734,0.00036799,7]
[341445908,1730891438996,-152.709931,0.00036799,7]
[341445909,1730891439006,-785.07,0.00036799,7]
[341445910,1730891439016,-1453.95,0.00036799,7]
[341445911,1730891439026,-1247.18,0.00036799,7]
[341445912,1730891439036,-500.0,0.00036799,7]
[341445913,1730891439047,-2369.71,0.00036799,7]
[341445914,1730891439056,-2912.95,0.00036799,7]
[341445917,1730891439067,-689.07,0.00036799,7]
[341445919,1730891439077,-2862.25,0.00036799,7]
[341445921,1730891439086,-1120.54902795,0.00036799,7]
[341446036,1730891440198,-372.37,0.00036799,7]
[341446044,1730891440261,-1245.24823188,0.00036799,7]
[341446046,1730891440273,-62.47274017,0.00036799,7]
[341446048,1730891440283,-749.82782616,0.00036799,7]
[341446052,1730891440314,-320.47625362,0.00036799,7]
[341446054,1730891440326,-867.74640596,0.00036799,7]
[341446056,1730891440337,-807.12353403,0.00036799,7]
[341446060,1730891440367,-3684.0639706,0.00036799,7]
[341446066,1730891440420,-1027.57200963,0.00036799,7]
[341446068,1730891440430,-757.13,0.00036799,7]
[341446070,1730891440439,-107.23937037,0.00036799,7]
[341446073,1730891440452,-392.76062963,0.00036799,7]
[341446075,1730891440462,-630.48937037,0.00036799,7]
[341446077,1730891440473,-988.39624288,0.00036799,7]
[341446332,1730891443217,-561.1656749,0.00036799,7]
[341446338,1730891443267,-2367.07871185,0.00036799,7]
[341446341,1730891443277,-2185.5,0.00036799,7]
[341446342,1730891443287,-793.69,0.00036799,7]
[341446344,1730891443296,-603.98,0.00036799,7]
[341446346,1730891443306,-51.66202698,0.00036799,7]
[341446508,1730891445053,-1476.66338,0.00036799,7]
[341446510,1730891445070,-725.038344,0.00036799,7]